[Event "Late-Titled-Tuesday-Blitz-September-05-2023"]
[Site "Chess.com"]
[Date "2023.09.05"]
[Round "1"]
[White "Iball95"]
[Black "MusicCityMaster"]
[Result "1/2-1/2"]
[WhiteElo "2826"]
[BlackElo "2447"]
[TimeControl "180+1"]
[EndTime "14:07:07 PDT"]
[Termination "Game drawn by repetition"]

1. e4 {[%clk 0:02:59.5]} 1... c5 {[%clk 0:02:59.5]} 2. Nf3 {[%clk 0:02:59.1]}
2... d6 {[%clk 0:02:58.7]} 3. Nc3 {[%clk 0:02:59.7]} 3... Nf6 {[%clk 0:02:55.5]}
4. d4 {[%clk 0:02:59.5]} 4... cxd4 {[%clk 0:02:55.6]} 5. Qxd4 {[%clk 0:03:00.1]}
5... a6 {[%clk 0:02:54.1]} 6. e5 {[%clk 0:02:59.4]} 6... Nc6 {[%clk 0:02:50.1]}
7. Qa4 {[%clk 0:02:58.9]} 7... dxe5 {[%clk 0:02:48.8]} 8. Nxe5 {[%clk
0:02:59.5]} 8... Bd7 {[%clk 0:02:48.1]} 9. Nxd7 {[%clk 0:02:59.6]} 9... Qxd7
{[%clk 0:02:48.1]} 10. Be3 {[%clk 0:02:59.8]} 10... e6 {[%clk 0:02:47.4]} 11.
Rd1 {[%clk 0:02:59.8]} 11... Qc7 {[%clk 0:02:46.1]} 12. g3 {[%clk 0:02:59.8]}
12... Be7 {[%clk 0:02:41.5]} 13. Bg2 {[%clk 0:03:00]} 13... Rc8 {[%clk
0:02:41.1]} 14. O-O {[%clk 0:02:59.1]} 14... O-O {[%clk 0:02:40.5]} 15. Qf4
{[%clk 0:02:19.4]} 15... Qa5 {[%clk 0:02:28.9]} 16. Rd2 {[%clk 0:02:14.4]} 16...
h6 {[%clk 0:02:18.4]} 17. Rfd1 {[%clk 0:02:13.7]} 17... Rfe8 {[%clk 0:02:12.6]}
18. Qa4 {[%clk 0:02:11.2]} 18... Qh5 {[%clk 0:02:10.8]} 19. h3 {[%clk
0:02:08.9]} 19... Red8 {[%clk 0:01:45.4]} 20. Rxd8+ {[%clk 0:02:06.7]} 20...
Rxd8 {[%clk 0:01:44.8]} 21. Rxd8+ {[%clk 0:02:05.6]} 21... Nxd8 {[%clk
0:01:41.3]} 22. g4 {[%clk 0:02:00.2]} 22... Qe5 {[%clk 0:01:35.3]} 23. Qd4
{[%clk 0:01:56.1]} 23... Qc7 {[%clk 0:01:30.5]} 24. Qb6 {[%clk 0:01:50.2]} 24...
Qd7 {[%clk 0:01:28.1]} 25. Qd4 {[%clk 0:01:46.5]} 25... Qxd4 {[%clk 0:01:25.2]}
26. Bxd4 {[%clk 0:01:47.2]} 26... Nc6 {[%clk 0:01:25.1]} 27. Be3 {[%clk
0:01:33.7]} 27... Bb4 {[%clk 0:01:20.7]} 28. Ne4 {[%clk 0:01:29.3]} 28... Nd5
{[%clk 0:01:20.1]} 29. Bc1 {[%clk 0:01:26.7]} 29... Nd4 {[%clk 0:01:15.9]} 30.
Kf1 {[%clk 0:00:51.9]} 30... Nxc2 {[%clk 0:01:15.3]} 31. a3 {[%clk 0:00:51.9]}
31... Be7 {[%clk 0:01:11]} 32. Ke2 {[%clk 0:00:52]} 32... Nd4+ {[%clk 0:01:11]}
33. Kd3 {[%clk 0:00:52.4]} 33... Nb3 {[%clk 0:01:09.8]} 34. Be3 {[%clk
0:00:49.3]} 34... Nxe3 {[%clk 0:01:08]} 35. Kxe3 {[%clk 0:00:50.2]} 35... b5
{[%clk 0:01:07.8]} 36. Kd3 {[%clk 0:00:46.3]} 36... Nc5+ {[%clk 0:01:07.5]} 37.
Nxc5 {[%clk 0:00:45.5]} 37... Bxc5 {[%clk 0:01:08.4]} 38. f4 {[%clk 0:00:45.1]}
38... b4 {[%clk 0:01:07.3]} 39. axb4 {[%clk 0:00:44.7]} 39... Bxb4 {[%clk
0:01:08.2]} 40. Ke4 {[%clk 0:00:40.8]} 40... a5 {[%clk 0:01:07.7]} 41. f5 {[%clk
0:00:38.7]} 41... Kf8 {[%clk 0:01:07.4]} 42. Bf1 {[%clk 0:00:39.1]} 42... Ke7
{[%clk 0:01:06.6]} 43. b3 {[%clk 0:00:39.4]} 43... Kd6 {[%clk 0:01:06.2]} 44.
fxe6 {[%clk 0:00:40]} 44... Kxe6 {[%clk 0:01:04.9]} 45. Bc4+ {[%clk 0:00:39.9]}
45... Kf6 {[%clk 0:01:05.3]} 46. h4 {[%clk 0:00:38.6]} 46... g6 {[%clk
0:01:02.4]} 47. h5 {[%clk 0:00:37.9]} 47... gxh5 {[%clk 0:01:01.9]} 48. gxh5
{[%clk 0:00:38.8]} 48... Be1 {[%clk 0:01:01.2]} 49. Bd5 {[%clk 0:00:38.8]} 49...
Bd2 {[%clk 0:01:00]} 50. Bc4 {[%clk 0:00:38.2]} 50... Bb4 {[%clk 0:01:00.1]} 51.
Bd5 {[%clk 0:00:38.8]} 51... Be1 {[%clk 0:00:59.9]} 52. Bc4 {[%clk 0:00:39.1]}
52... Bb4 {[%clk 0:00:59.9]} 53. Bd5 {[%clk 0:00:39.8]} 53... Ke7 {[%clk
0:00:59.6]} 54. Kf5 {[%clk 0:00:39.5]} 54... f6 {[%clk 0:00:59.7]} 55. Kg6
{[%clk 0:00:39.7]} 55... Bd2 {[%clk 0:01:00.3]} 56. Kf5 {[%clk 0:00:38.5]} 56...
Bg5 {[%clk 0:01:01.2]} 57. Bc4 {[%clk 0:00:39.1]} 57... Kd6 {[%clk 0:01:01.9]}
58. Bb5 {[%clk 0:00:39.5]} 58... Kc5 {[%clk 0:01:02.3]} 59. Ba4 {[%clk
0:00:40.3]} 59... Kb4 {[%clk 0:01:02.6]} 60. Kg4 {[%clk 0:00:40.8]} 60... Kc3
{[%clk 0:01:01.5]} 61. Kf5 {[%clk 0:00:41.7]} 61... Kd4 {[%clk 0:01:01.7]} 62.
Bb5 {[%clk 0:00:42]} 62... Kc3 {[%clk 0:01:01.8]} 63. Ba4 {[%clk 0:00:42.2]}
63... Kd4 {[%clk 0:01:01.2]} 64. Bb5 {[%clk 0:00:42.9]} 64... Kc3 {[%clk
0:01:01.1]} 65. Ba4 {[%clk 0:00:43.8]} 1/2-1/2

[Event "Late-Titled-Tuesday-Blitz-September-05-2023"]
[Site "Chess.com"]
[Date "2023.09.05"]
[Round "1"]
[White "Zhigalko_Sergei"]
[Black "jlf287"]
[Result "1-0"]
[WhiteElo "2881"]
[BlackElo "2458"]
[TimeControl "180+1"]
[EndTime "14:07:12 PDT"]
[Termination "Zhigalko_Sergei won on time"]

1. e4 {[%clk 0:03:00.9]} 1... e5 {[%clk 0:02:59.2]} 2. Nf3 {[%clk 0:03:00]} 2...
Nc6 {[%clk 0:02:59.9]} 3. Bc4 {[%clk 0:02:59.9]} 3... Nf6 {[%clk 0:02:59.9]} 4.
d3 {[%clk 0:02:58.6]} 4... Bc5 {[%clk 0:02:59.7]} 5. O-O {[%clk 0:02:58.2]} 5...
d6 {[%clk 0:02:58.4]} 6. c3 {[%clk 0:02:57.8]} 6... a6 {[%clk 0:02:58.4]} 7.
Nbd2 {[%clk 0:02:56.5]} 7... Ba7 {[%clk 0:02:58.4]} 8. Bb3 {[%clk 0:02:56.5]}
8... O-O {[%clk 0:02:57.6]} 9. h3 {[%clk 0:02:52.3]} 9... h6 {[%clk 0:02:56.6]}
10. Re1 {[%clk 0:02:51.9]} 10... Re8 {[%clk 0:02:57.3]} 11. Nf1 {[%clk
0:02:49.1]} 11... Be6 {[%clk 0:02:57.7]} 12. Be3 {[%clk 0:02:31.8]} 12... d5
{[%clk 0:02:55.7]} 13. Bxa7 {[%clk 0:02:31.4]} 13... Rxa7 {[%clk 0:02:55.7]} 14.
Ng3 {[%clk 0:02:29.4]} 14... dxe4 {[%clk 0:02:38.8]} 15. dxe4 {[%clk 0:02:26.9]}
15... Qxd1 {[%clk 0:02:36.3]} 16. Raxd1 {[%clk 0:02:26.6]} 16... Bxb3 {[%clk
0:02:34.3]} 17. axb3 {[%clk 0:02:26.5]} 17... g6 {[%clk 0:02:24.4]} 18. Nf1
{[%clk 0:01:59.8]} 18... Raa8 {[%clk 0:02:10.1]} 19. Ne3 {[%clk 0:01:59.1]}
19... Re6 {[%clk 0:01:09.7]} 20. Nd5 {[%clk 0:01:54.6]} 20... Ne8 {[%clk
0:01:09.8]} 21. b4 {[%clk 0:01:48.3]} 21... Kg7 {[%clk 0:01:02.2]} 22. Nd2
{[%clk 0:01:24.9]} 22... Ne7 {[%clk 0:00:54.4]} 23. Nc4 {[%clk 0:01:17.5]} 23...
f6 {[%clk 0:00:50]} 24. Nde3 {[%clk 0:00:52.1]} 24... Nd6 {[%clk 0:00:40]} 25.
f3 {[%clk 0:00:39.3]} 25... Rd8 {[%clk 0:00:13.7]} 26. Na5 {[%clk 0:00:39]}
26... b6 {[%clk 0:00:09]} 27. Nac4 {[%clk 0:00:32.4]} 27... Nf7 {[%clk
0:00:07.8]} 28. Ra1 {[%clk 0:00:32.2]} 28... b5 {[%clk 0:00:07.1]} 29. Na5
{[%clk 0:00:28.7]} 29... Rd2 {[%clk 0:00:07.3]} 30. Rab1 {[%clk 0:00:24.8]}
30... Red6 {[%clk 0:00:06.2]} 31. Nb3 {[%clk 0:00:24.7]} 31... Ng5 {[%clk
0:00:04.9]} 32. Nxd2 {[%clk 0:00:23.7]} 32... Rxd2 {[%clk 0:00:04.6]} 33. Red1
{[%clk 0:00:22.3]} 33... Re2 {[%clk 0:00:04.8]} 34. Re1 {[%clk 0:00:22.2]} 34...
Rd2 {[%clk 0:00:04.8]} 35. Red1 {[%clk 0:00:19.8]} 35... Re2 {[%clk 0:00:05.1]}
36. Kf1 {[%clk 0:00:20.3]} 36... Rxe3 {[%clk 0:00:05.1]} 37. Kf2 {[%clk
0:00:20.9]} 37... Ne6 {[%clk 0:00:01.2]} 38. Kxe3 {[%clk 0:00:21.2]} 1-0

[Event "Late-Titled-Tuesday-Blitz-September-05-2023"]
[Site "Chess.com"]
[Date "2023.09.05"]
[Round "1"]
[White "adiosabu"]
[Black "Sacbutt"]
[Result "1-0"]
[WhiteElo "2569"]
[BlackElo "2262"]
[TimeControl "180+1"]
[EndTime "14:07:13 PDT"]
[Termination "adiosabu won on time"]

1. d4 {[%clk 0:02:59.4]} 1... e5 {[%clk 0:02:58.7]} 2. d5 {[%clk 0:02:57.9]}
2... Bc5 {[%clk 0:02:56.9]} 3. Nc3 {[%clk 0:02:48]} 3... a6 {[%clk 0:02:51.6]}
4. Nf3 {[%clk 0:02:46]} 4... d6 {[%clk 0:02:48.4]} 5. e4 {[%clk 0:02:43.8]} 5...
Ne7 {[%clk 0:02:44.8]} 6. Bd3 {[%clk 0:02:34.6]} 6... O-O {[%clk 0:02:37.5]} 7.
Bg5 {[%clk 0:02:30.7]} 7... f6 {[%clk 0:02:34.1]} 8. Be3 {[%clk 0:02:30.4]} 8...
Bxe3 {[%clk 0:02:33.2]} 9. fxe3 {[%clk 0:02:31.3]} 9... f5 {[%clk 0:02:23.5]}
10. exf5 {[%clk 0:02:28.7]} 10... Bxf5 {[%clk 0:02:22.4]} 11. O-O {[%clk
0:02:20.9]} 11... Bxd3 {[%clk 0:02:12.5]} 12. cxd3 {[%clk 0:02:06]} 12... Nf5
{[%clk 0:02:07.6]} 13. Qe2 {[%clk 0:01:59.6]} 13... Nd7 {[%clk 0:02:05.3]} 14.
Rac1 {[%clk 0:01:48.9]} 14... c5 {[%clk 0:01:57.9]} 15. dxc6 {[%clk 0:01:47.4]}
15... bxc6 {[%clk 0:01:58.2]} 16. d4 {[%clk 0:01:43.8]} 16... Qa5 {[%clk
0:01:36.3]} 17. Qc4+ {[%clk 0:01:38.7]} 17... Kh8 {[%clk 0:01:13.9]} 18. Qxc6
{[%clk 0:01:34.4]} 18... Nf6 {[%clk 0:01:09.6]} 19. dxe5 {[%clk 0:01:09.1]}
19... dxe5 {[%clk 0:01:09.3]} 20. e4 {[%clk 0:01:08.1]} 20... Nd4 {[%clk
0:01:06.9]} 21. Qc4 {[%clk 0:00:56.8]} 21... Rac8 {[%clk 0:01:01.1]} 22. Qd3
{[%clk 0:00:53.5]} 22... Rfd8 {[%clk 0:00:49.5]} 23. Qe3 {[%clk 0:00:31]} 23...
Qb6 {[%clk 0:00:41.9]} 24. Kh1 {[%clk 0:00:29.4]} 24... Qxb2 {[%clk 0:00:38.5]}
25. Nxe5 {[%clk 0:00:27.7]} 25... Qb7 {[%clk 0:00:23.1]} 26. Nd5 {[%clk
0:00:20]} 26... Rxc1 {[%clk 0:00:15.3]} 27. Rxc1 {[%clk 0:00:20]} 27... Nxd5
{[%clk 0:00:15.2]} 28. Qxd4 {[%clk 0:00:20]} 28... Rc8 {[%clk 0:00:10.1]} 29.
Rxc8+ {[%clk 0:00:18]} 29... Qxc8 {[%clk 0:00:11]} 30. exd5 {[%clk 0:00:17.9]}
30... Qc1+ {[%clk 0:00:09.5]} 31. Qg1 {[%clk 0:00:18.3]} 31... Qd2 {[%clk
0:00:10.2]} 32. d6 {[%clk 0:00:18.1]} 32... Kg8 {[%clk 0:00:08.5]} 33. d7 {[%clk
0:00:18.2]} 33... Kf8 {[%clk 0:00:08.7]} 34. h3 {[%clk 0:00:18.2]} 34... Ke7
{[%clk 0:00:08.8]} 35. Qc5+ {[%clk 0:00:16.8]} 35... Kf6 {[%clk 0:00:08]} 36.
Qf8+ {[%clk 0:00:15.5]} 36... Kxe5 {[%clk 0:00:04.8]} 37. d8=Q {[%clk
0:00:15.5]} 1-0

[Event "Late-Titled-Tuesday-Blitz-September-05-2023"]
[Site "Chess.com"]
[Date "2023.09.05"]
[Round "1"]
[White "DawidCzerw"]
[Black "BillieKimbah"]
[Result "0-1"]
[WhiteElo "2495"]
[BlackElo "3043"]
[TimeControl "180+1"]
[EndTime "14:07:14 PDT"]
[Termination "BillieKimbah won on time"]

1. e4 {[%clk 0:03:00.9]} 1... c5 {[%clk 0:02:59.1]} 2. Nf3 {[%clk 0:03:01.2]}
2... e6 {[%clk 0:02:59.1]} 3. d4 {[%clk 0:03:01.7]} 3... cxd4 {[%clk 0:03:00]}
4. Nxd4 {[%clk 0:03:02.6]} 4... Nc6 {[%clk 0:03:00.2]} 5. Nc3 {[%clk 0:03:02.9]}
5... Qc7 {[%clk 0:02:59]} 6. Be3 {[%clk 0:03:02.6]} 6... a6 {[%clk 0:02:57.9]}
7. Qd2 {[%clk 0:03:02.5]} 7... Nf6 {[%clk 0:02:55.2]} 8. O-O-O {[%clk
0:03:02.9]} 8... Be7 {[%clk 0:02:50.5]} 9. f4 {[%clk 0:02:59.9]} 9... d6 {[%clk
0:02:49.2]} 10. Be2 {[%clk 0:02:56.8]} 10... h5 {[%clk 0:02:43.7]} 11. Rhe1
{[%clk 0:02:54]} 11... Bd7 {[%clk 0:02:42]} 12. Kb1 {[%clk 0:02:50.1]} 12... Rc8
{[%clk 0:02:40.2]} 13. g3 {[%clk 0:02:46.2]} 13... O-O {[%clk 0:02:30.6]} 14. g4
{[%clk 0:02:41.4]} 14... hxg4 {[%clk 0:02:19.3]} 15. h3 {[%clk 0:02:41.8]} 15...
gxh3 {[%clk 0:01:55.7]} 16. Rh1 {[%clk 0:02:41.6]} 16... Nxd4 {[%clk 0:01:55.2]}
17. Bxd4 {[%clk 0:02:41]} 17... e5 {[%clk 0:01:55.7]} 18. Be3 {[%clk 0:02:34.6]}
18... exf4 {[%clk 0:01:50.4]} 19. Bxf4 {[%clk 0:02:35.5]} 19... b5 {[%clk
0:01:50.2]} 20. Rdg1 {[%clk 0:02:29.4]} 20... b4 {[%clk 0:01:44]} 21. Nd5 {[%clk
0:01:50]} 21... Nxd5 {[%clk 0:01:41.1]} 22. exd5 {[%clk 0:01:47.8]} 22... Bf6
{[%clk 0:01:33.8]} 23. Bd3 {[%clk 0:01:36.6]} 23... Rfe8 {[%clk 0:01:26.1]} 24.
Qh2 {[%clk 0:01:30.1]} 24... Qc5 {[%clk 0:01:20.7]} 25. Qg3 {[%clk 0:01:04.9]}
25... Qd4 {[%clk 0:01:12.4]} 26. Bc1 {[%clk 0:01:02.7]} 26... a5 {[%clk
0:01:03.4]} 27. Rf1 {[%clk 0:00:49]} 27... Be5 {[%clk 0:00:41.8]} 28. Qf3 {[%clk
0:00:42.6]} 28... Re7 {[%clk 0:00:34.9]} 29. Qh5 {[%clk 0:00:35.9]} 29... g6
{[%clk 0:00:35]} 30. Qh6 {[%clk 0:00:27]} 30... a4 {[%clk 0:00:27.4]} 31. Rhg1
{[%clk 0:00:20.1]} 31... Bg7 {[%clk 0:00:26.6]} 32. Qg5 {[%clk 0:00:19.3]} 32...
Rce8 {[%clk 0:00:26.4]} 33. Rf4 {[%clk 0:00:16.3]} 33... Qe5 {[%clk 0:00:24.8]}
34. Qh4 {[%clk 0:00:08.4]} 34... a3 {[%clk 0:00:24.5]} 35. Rg5 {[%clk
0:00:06.5]} 35... Qe1 {[%clk 0:00:19.6]} 36. Qxe1 {[%clk 0:00:01.8]} 36... Rxe1
{[%clk 0:00:20.5]} 37. Rf1 {[%clk 0:00:02.1]} 37... axb2 {[%clk 0:00:19.9]} 38.
Rxe1 {[%clk 0:00:01.9]} 38... Rxe1 {[%clk 0:00:20.8]} 0-1

[Event "Late-Titled-Tuesday-Blitz-September-05-2023"]
[Site "Chess.com"]
[Date "2023.09.05"]
[Round "1"]
[White "Marcin"]
[Black "Cayse"]
[Result "1-0"]
[WhiteElo "2476"]
[BlackElo "2871"]
[TimeControl "180+1"]
[EndTime "14:07:16 PDT"]
[Termination "Marcin won by resignation"]

1. e4 {[%clk 0:03:00.4]} 1... e5 {[%clk 0:03:00.1]} 2. Nf3 {[%clk 0:02:59.7]}
2... Nc6 {[%clk 0:03:00.5]} 3. d4 {[%clk 0:02:58.6]} 3... exd4 {[%clk
0:03:00.1]} 4. Nxd4 {[%clk 0:02:59.5]} 4... Nf6 {[%clk 0:03:00.1]} 5. Nc3 {[%clk
0:02:59.2]} 5... Bb4 {[%clk 0:02:58.3]} 6. Nxc6 {[%clk 0:02:59.2]} 6... bxc6
{[%clk 0:02:59.2]} 7. Bd3 {[%clk 0:02:59.5]} 7... O-O {[%clk 0:02:58.7]} 8. O-O
{[%clk 0:02:55.1]} 8... d5 {[%clk 0:02:58.6]} 9. Bd2 {[%clk 0:02:53.7]} 9... Rb8
{[%clk 0:02:56.1]} 10. Re1 {[%clk 0:02:00.5]} 10... Re8 {[%clk 0:02:52.7]} 11.
a3 {[%clk 0:01:44.6]} 11... Bc5 {[%clk 0:02:48.4]} 12. h3 {[%clk 0:01:41.7]}
12... h6 {[%clk 0:02:32.5]} 13. Qf3 {[%clk 0:01:27.3]} 13... Be6 {[%clk
0:02:16.5]} 14. e5 {[%clk 0:01:21.5]} 14... Nh7 {[%clk 0:02:07.7]} 15. Na4
{[%clk 0:01:19.7]} 15... Bf8 {[%clk 0:02:01.6]} 16. b4 {[%clk 0:01:17.1]} 16...
Qh4 {[%clk 0:01:52.9]} 17. Be3 {[%clk 0:01:00.6]} 17... d4 {[%clk 0:01:42.8]}
18. Bf4 {[%clk 0:00:52]} 18... Ng5 {[%clk 0:01:29.4]} 19. Qg3 {[%clk 0:00:46.7]}
19... Qxg3 {[%clk 0:01:28.9]} 20. Bxg3 {[%clk 0:00:46]} 20... Bd5 {[%clk
0:01:22.1]} 21. f4 {[%clk 0:00:45.5]} 21... Nh7 {[%clk 0:01:09.6]} 22. Bf2
{[%clk 0:00:43.7]} 22... Rbd8 {[%clk 0:01:03.2]} 23. Rad1 {[%clk 0:00:34.2]}
23... g5 {[%clk 0:00:53.1]} 24. g3 {[%clk 0:00:27.8]} 24... Bf3 {[%clk
0:00:40.3]} 25. Rd2 {[%clk 0:00:25.5]} 25... Kh8 {[%clk 0:00:32.4]} 26. f5
{[%clk 0:00:16.3]} 26... Rd5 {[%clk 0:00:28.8]} 27. Bc4 {[%clk 0:00:13]} 27...
Rd7 {[%clk 0:00:22.5]} 28. Rxd4 {[%clk 0:00:13]} 28... Red8 {[%clk 0:00:20.6]}
29. Rxd7 {[%clk 0:00:12]} 29... Rxd7 {[%clk 0:00:21.5]} 30. e6 {[%clk
0:00:12.1]} 30... fxe6 {[%clk 0:00:16.1]} 31. fxe6 {[%clk 0:00:13]} 31... Re7
{[%clk 0:00:12.9]} 32. Bd4+ {[%clk 0:00:11]} 32... Bg7 {[%clk 0:00:12.2]} 33.
Bc5 {[%clk 0:00:11.4]} 33... Re8 {[%clk 0:00:12.4]} 34. e7 {[%clk 0:00:11.5]}
34... Bf6 {[%clk 0:00:09.7]} 35. Bf7 {[%clk 0:00:10.7]} 1-0

[Event "Late-Titled-Tuesday-Blitz-September-05-2023"]
[Site "Chess.com"]
[Date "2023.09.05"]
[Round "1"]
[White "MariaFominykh"]
[Black "Leo_C"]
[Result "0-1"]
[WhiteElo "2297"]
[BlackElo "2603"]
[TimeControl "180+1"]
[EndTime "14:07:16 PDT"]
[Termination "Leo_C won on time"]

1. d4 {[%clk 0:03:00.9]} 1... Nf6 {[%clk 0:02:58.1]} 2. c4 {[%clk 0:03:01.3]}
2... e6 {[%clk 0:02:58.4]} 3. Nf3 {[%clk 0:02:59.2]} 3... d5 {[%clk 0:02:58.4]}
4. Nc3 {[%clk 0:02:59.1]} 4... Bb4 {[%clk 0:02:55.1]} 5. cxd5 {[%clk 0:02:54.6]}
5... exd5 {[%clk 0:02:54.9]} 6. Bg5 {[%clk 0:02:53.9]} 6... h6 {[%clk
0:02:54.7]} 7. Bxf6 {[%clk 0:02:52.3]} 7... Qxf6 {[%clk 0:02:55.6]} 8. Qa4+
{[%clk 0:02:46.9]} 8... Nc6 {[%clk 0:02:55.6]} 9. Ne5 {[%clk 0:02:43.1]} 9...
O-O {[%clk 0:02:39.1]} 10. Nxc6 {[%clk 0:02:41.8]} 10... Bxc3+ {[%clk
0:02:38.6]} 11. bxc3 {[%clk 0:02:42.4]} 11... bxc6 {[%clk 0:02:39]} 12. e3
{[%clk 0:02:42]} 12... Qg6 {[%clk 0:02:31.8]} 13. f3 {[%clk 0:01:41.7]} 13...
Rb8 {[%clk 0:02:15]} 14. Qa3 {[%clk 0:01:05]} 14... Re8 {[%clk 0:01:24.1]} 15.
Kf2 {[%clk 0:01:03]} 15... Qc2+ {[%clk 0:01:10.7]} 16. Be2 {[%clk 0:00:58.9]}
16... Rb2 {[%clk 0:01:07.6]} 17. Rhe1 {[%clk 0:00:51.5]} 17... Qd2 {[%clk
0:01:03.7]} 18. c4 {[%clk 0:00:45.3]} 18... dxc4 {[%clk 0:00:53.8]} 19. Rad1
{[%clk 0:00:45]} 19... Qb4 {[%clk 0:00:46.4]} 20. Qxb4 {[%clk 0:00:28.7]} 20...
Rxb4 {[%clk 0:00:47.3]} 21. Rc1 {[%clk 0:00:18.8]} 21... Be6 {[%clk 0:00:46.9]}
22. Rc2 {[%clk 0:00:18.5]} 22... Reb8 {[%clk 0:00:41.8]} 23. Rec1 {[%clk
0:00:17.5]} 23... Rb2 {[%clk 0:00:41.9]} 24. e4 {[%clk 0:00:16.7]} 24... Rxc2
{[%clk 0:00:41.3]} 25. Rxc2 {[%clk 0:00:16.6]} 25... Rb4 {[%clk 0:00:40.5]} 26.
Ke3 {[%clk 0:00:15.4]} 26... Kf8 {[%clk 0:00:40.5]} 27. Kd2 {[%clk 0:00:15.2]}
27... Ra4 {[%clk 0:00:33.3]} 28. Kc3 {[%clk 0:00:13.4]} 28... Ke7 {[%clk
0:00:28.5]} 29. Rb2 {[%clk 0:00:13.3]} 29... Ra3+ {[%clk 0:00:28.2]} 30. Kb4
{[%clk 0:00:12.3]} 30... Ra6 {[%clk 0:00:17.6]} 31. Bxc4 {[%clk 0:00:12.7]}
31... Rb6+ {[%clk 0:00:17.4]} 32. Kc3 {[%clk 0:00:09.7]} 32... Rxb2 {[%clk
0:00:17.5]} 33. Bxe6 {[%clk 0:00:09.5]} 33... Rxg2 {[%clk 0:00:17.5]} 34. Bg4
{[%clk 0:00:05]} 34... Rxh2 {[%clk 0:00:17.5]} 35. Kb4 {[%clk 0:00:05.4]} 35...
h5 {[%clk 0:00:17]} 36. Bc8 {[%clk 0:00:04.4]} 36... h4 {[%clk 0:00:17.1]} 0-1

[Event "Late-Titled-Tuesday-Blitz-September-05-2023"]
[Site "Chess.com"]
[Date "2023.09.05"]
[Round "1"]
[White "sergiochess83"]
[Black "Payyappat"]
[Result "1-0"]
[WhiteElo "2932"]
[BlackElo "2478"]
[TimeControl "180+1"]
[EndTime "14:07:19 PDT"]
[Termination "sergiochess83 won by resignation"]

1. d4 {[%clk 0:03:00.9]} 1... Nf6 {[%clk 0:02:58.7]} 2. c4 {[%clk 0:03:00.5]}
2... c5 {[%clk 0:02:57.5]} 3. d5 {[%clk 0:02:59.9]} 3... e6 {[%clk 0:02:57.2]}
4. Nc3 {[%clk 0:02:59.6]} 4... exd5 {[%clk 0:02:58.1]} 5. cxd5 {[%clk
0:03:00.3]} 5... d6 {[%clk 0:02:58.2]} 6. Nf3 {[%clk 0:02:51]} 6... g6 {[%clk
0:02:57.4]} 7. h3 {[%clk 0:02:50.9]} 7... Bg7 {[%clk 0:02:57.3]} 8. Bf4 {[%clk
0:02:51.6]} 8... O-O {[%clk 0:02:56.3]} 9. e3 {[%clk 0:02:52.2]} 9... Re8 {[%clk
0:02:55.5]} 10. Nd2 {[%clk 0:02:50.8]} 10... Bf5 {[%clk 0:02:47]} 11. Bb5 {[%clk
0:02:29.2]} 11... Nbd7 {[%clk 0:02:35.8]} 12. Bxd6 {[%clk 0:02:10.3]} 12... a6
{[%clk 0:02:34.3]} 13. Be2 {[%clk 0:02:04.2]} 13... b5 {[%clk 0:02:20.2]} 14.
O-O {[%clk 0:01:54.1]} 14... b4 {[%clk 0:02:04.5]} 15. Na4 {[%clk 0:01:50.2]}
15... Nxd5 {[%clk 0:02:01.5]} 16. Nc4 {[%clk 0:01:49]} 16... Be6 {[%clk
0:01:51.2]} 17. Nxc5 {[%clk 0:01:30.4]} 17... Nxc5 {[%clk 0:01:49.8]} 18. Bxc5
{[%clk 0:01:31.3]} 18... Qg5 {[%clk 0:01:06]} 19. Nd6 {[%clk 0:00:50.2]} 19...
Bxh3 {[%clk 0:00:34.5]} 20. Bf3 {[%clk 0:00:48.6]} 20... Re5 {[%clk 0:00:26]}
21. Bd4 {[%clk 0:00:35.1]} 21... Rd8 {[%clk 0:00:15.3]} 22. Bxe5 {[%clk
0:00:33.3]} 22... Bxe5 {[%clk 0:00:16.2]} 23. Bxd5 {[%clk 0:00:16.8]} 23... Rxd6
{[%clk 0:00:15.2]} 24. f4 {[%clk 0:00:17]} 24... Qg3 {[%clk 0:00:07.2]} 25. Qf3
{[%clk 0:00:07.4]} 25... Bxf4 {[%clk 0:00:01.3]} 26. exf4 {[%clk 0:00:06.8]}
26... Qh4 {[%clk 0:00:01.3]} 27. Qxh3 {[%clk 0:00:06.4]} 27... Qxh3 {[%clk
0:00:01.5]} 28. gxh3 {[%clk 0:00:07.3]} 28... Rxd5 {[%clk 0:00:02.2]} 29. Rad1
{[%clk 0:00:07.6]} 29... Rc5 {[%clk 0:00:03]} 30. Rc1 {[%clk 0:00:08]} 30... Rd5
{[%clk 0:00:03.1]} 31. Rfd1 {[%clk 0:00:08.3]} 31... Rf5 {[%clk 0:00:03.8]} 32.
Rc4 {[%clk 0:00:08.9]} 32... a5 {[%clk 0:00:03.7]} 33. Rd6 {[%clk 0:00:08.9]}
33... g5 {[%clk 0:00:04.3]} 34. fxg5 {[%clk 0:00:08.8]} 34... Rxg5+ {[%clk
0:00:05.2]} 35. Rg4 {[%clk 0:00:09]} 35... Rxg4+ {[%clk 0:00:05.1]} 36. hxg4
{[%clk 0:00:09.9]} 36... f5 {[%clk 0:00:05.7]} 37. gxf5 {[%clk 0:00:09]} 1-0